bitfinex/quotes_BTCUSD_20240820
["timestamp","ask_amount","ask_price","bid_price","bid_amount"]
[1724113988712,0.3817,60601.0,60599.0,0.85716429]
[1724113988713,0.72134877,60600.0,60599.0,0.85716429]
[1724113988922,0.72134877,60600.0,60599.0,0.53150514]
[1724113988923,0.72034877,60600.0,60599.0,0.53150514]
[1724113989098,0.72034877,60600.0,60599.0,0.41599214]
[1724113989536,0.72034877,60600.0,60599.0,0.12110878]
[1724113989741,0.72034877,60600.0,60599.0,0.05013881]
[1724113990543,0.72034877,60600.0,60599.0,0.16565181]
[1724113990688,0.72034877,60600.0,60599.0,0.44400474]
[1724113990894,0.72034877,60600.0,60599.0,0.06413881]
[1724113991099,0.72034877,60600.0,60599.0,0.07813881]
[1724113991509,0.72034877,60600.0,60599.0,0.06413881]
[1724113991678,0.72034877,60600.0,60599.0,0.06413175]
[1724113992306,0.72234877,60600.0,60599.0,0.04861234]
[1724113992504,0.72234877,60600.0,60586.0,0.04731826]
[1724113992505,0.002,60592.0,60586.0,0.04731826]
[1724113992704,0.002,60592.0,60587.0,0.0201452]
[1724113992907,0.002,60590.0,60588.0,0.0201452]
[1724113993186,0.3818,60594.0,60580.0,0.0201452]
[1724113993187,0.00412667,60589.0,60580.0,0.0201452]
[1724113993392,0.00412667,60589.0,60581.0,0.0201452]
[1724113993599,0.3818,60588.0,60582.0,0.0201452]
[1724113993824,0.3818,60588.0,60586.0,0.028]
[1724113993825,0.17112687,60587.0,60586.0,0.028]
[1724113994058,0.17112687,60587.0,60575.0,1.54738643]
[1724113994059,0.3818,60586.0,60576.0,0.02014451]
[1724113994265,0.00412721,60585.0,60577.0,0.02014451]
[1724113994485,0.00412721,60585.0,60575.0,1.5]
[1724113994486,0.3818,60586.0,60580.0,0.014]
[1724113994696,0.00412689,60585.0,60580.0,0.014]
[1724113994909,0.00412689,60585.0,60580.0,0.129549]
[1724113995112,0.17134877,60581.0,60580.0,0.06138643]
[1724113995350,0.17134877,60581.0,60580.0,0.014]
[1724113995974,0.17134877,60581.0,60571.0,0.04738643]
[1724113996184,0.17134877,60581.0,60570.0,0.61404632]
[1724113996185,0.17134877,60581.0,60576.0,0.009]
[1724113996422,0.17134877,60581.0,60577.0,0.04738643]
[1724113996651,0.17134877,60581.0,60575.0,0.14738643]
[1724113996860,0.17234877,60581.0,60578.0,0.04738643]
[1724113997061,0.17234877,60581.0,60578.0,0.0452425]
[1724113997062,0.17134877,60581.0,60578.0,0.0452425]
[1724113997269,0.17234877,60581.0,60580.0,0.009]
[1724113997472,0.17334877,60581.0,60580.0,0.009]
[1724113997697,0.17334877,60581.0,60575.0,0.1]
[1724113997698,0.17134877,60581.0,60575.0,0.215559]
[1724113998142,0.17134877,60581.0,60575.0,0.1]
[1724113998143,0.17234877,60581.0,60575.0,0.1]
[1724113998353,0.17234877,60581.0,60574.0,1.5]
[1724113998354,0.17134877,60576.0,60574.0,1.5]
[1724113998556,0.001,60573.0,60572.0,0.186728]
[1724113998765,0.17134877,60573.0,60572.0,0.65272987]
[1724113998984,0.17134877,60573.0,60572.0,2.40757821]
[1724113999217,0.17134877,60573.0,60572.0,2.31269287]
[1724113999831,0.17234877,60573.0,60572.0,2.32169287]
[1724114000452,0.17234877,60573.0,60572.0,1.97500187]
[1724114000658,0.17334877,60573.0,60572.0,1.955693]
[1724114000869,0.17334877,60573.0,60572.0,1.609]
[1724114000870,0.17417477,60573.0,60572.0,1.609]
[1724114001308,0.00412713,60585.0,60572.0,2.1825]
[1724114001541,0.066075,60639.0,60589.0,0.001]
[1724114001752,0.00824,60648.0,60589.0,0.001]
[1724114001753,0.00824,60648.0,60633.0,0.346345]
[1724114001969,0.00824,60648.0,60647.0,0.115422]
[1724114002174,0.00824,60648.0,60647.0,0.807954]
[1724114002384,0.00824,60648.0,60647.0,0.56022548]
[1724114002602,0.56708877,60648.0,60647.0,0.1]
[1724114002815,0.56708877,60648.0,60636.0,0.07076321]
[1724114003091,0.56708877,60648.0,60630.0,0.11807138]
[1724114003092,0.17134877,60643.0,60630.0,0.230907]
[1724114003295,0.17134877,60643.0,60634.0,0.1]
[1724114003508,0.39574,60648.0,60634.0,0.1]
[1724114003509,0.17134877,60635.0,60634.0,0.1]
[1724114003720,0.17134877,60635.0,60624.0,0.07076321]
[1724114003940,0.17134877,60634.0,60624.0,0.1]
[1724114004414,0.18534877,60634.0,60624.0,0.1]
[1724114004619,0.18534877,60634.0,60620.0,0.06509291]
[1724114004620,0.17130283,60630.0,60620.0,0.06509291]
[1724114004824,0.17130283,60630.0,60616.0,0.23096]
[1724114005031,0.3875,60633.0,60617.0,0.230954]
[1724114005032,0.17134877,60628.0,60617.0,0.230954]
[1724114005240,0.3875,60633.0,60617.0,0.230954]
[1724114005241,0.17134877,60626.0,60617.0,0.115477]
[1724114005466,0.17134877,60623.0,60612.0,0.07076321]
[1724114005692,0.17134877,60623.0,60620.0,0.115472]
[1724114005890,0.3875,60633.0,60601.0,0.02005873]
[1724114005891,0.3875,60633.0,60615.0,0.07072198]
[1724114006107,0.3875,60633.0,60632.0,0.346351]
[1724114006307,0.00824,60648.0,60616.0,0.01729884]
[1724114006308,0.3976,60641.0,60622.0,0.26472198]
[1724114006515,0.3976,60641.0,60640.0,0.346305]
[1724114006736,0.00824,60648.0,60634.0,0.230892]
[1724114006737,0.00824,60648.0,60647.0,0.346266]
[1724114006958,0.00824,60648.0,60647.0,0.67711]
[1724114007162,0.17958877,60648.0,60647.0,0.67711]
[1724114007583,0.00824,60648.0,60647.0,0.67711]
[1724114007785,0.00824,60648.0,60647.0,0.907954]
[1724114008210,0.00824,60648.0,60647.0,1.105854]
[1724114008414,0.00924,60648.0,60647.0,1.116854]
[1724114008617,0.00824,60648.0,60647.0,1.105854]
[1724114008824,0.00824,60648.0,60647.0,0.94573198]
[1724114009032,0.00924,60648.0,60647.0,0.88601]
[1724114009235,0.00924,60648.0,60647.0,1.21114998]
[1724114009447,0.00924,60648.0,60647.0,1.116854]
[1724114009660,0.0002,60659.0,60658.0,0.346203]
[1724114009877,0.0002,60659.0,60658.0,0.215401]
[1724114010087,0.0002,60659.0,60658.0,0.446203]
[1724114010294,0.0002,60659.0,60640.0,0.0756378]
[1724114010295,0.3965,60656.0,60640.0,0.0756378]
[1724114010501,0.3965,60640.0,60624.0,0.115465]
[1724114010775,0.3965,60640.0,60627.0,0.7]
[1724114010958,0.5942,60638.0,60621.0,0.0200783]
[1724114011168,0.11541,60653.0,60597.0,0.04686064]
[1724114011169,0.3914,60635.0,60597.0,0.04686064]
[1724114011375,0.3914,60635.0,60589.0,0.4073]
[1724114011376,0.1957,60634.0,60595.0,0.04686064]
[1724114011583,0.230829,60651.0,60598.0,1.5]
[1724114011584,0.5871,60630.0,60598.0,1.5]
[1724114011796,0.7101,60643.0,60587.0,0.04686064]
[1724114011797,0.3778,60627.0,60587.0,0.04686064]
[1724114012006,0.3778,60624.0,60584.0,0.04686064]
[1724114012202,0.3778,60622.0,60588.0,1.5]
[1724114012427,0.3778,60622.0,60601.0,0.115507]
[1724114012864,0.3778,60622.0,60592.0,0.04686064]
[1724114013100,0.1669,60623.0,60589.0,0.5341603]
[1724114013101,0.3778,60604.0,60589.0,0.5341603]
[1724114013310,0.17134877,60603.0,60590.0,0.23106]
[1724114013585,0.17134877,60603.0,60597.0,0.006]
[1724114013826,0.17134877,60603.0,60596.0,0.231035]
[1724114014052,0.1669,60623.0,60590.0,0.07029096]
[1724114014053,0.17134877,60597.0,60590.0,0.07029096]
[1724114014276,0.17134877,60597.0,60579.0,0.05558595]
[1724114014277,0.1805,60600.0,60592.0,0.014]
[1724114014469,0.3778,60592.0,60578.0,1.5]
[1724114014710,0.17134877,60588.0,60570.0,0.51404632]
[1724114014914,0.17134877,60588.0,60571.0,0.00330135]
[1724114015126,0.17134877,60588.0,60571.0,1.50330135]
[1724114015329,0.17134877,60588.0,60572.0,0.02013954]
[1724114015744,0.17134877,60588.0,60569.0,6.0009086]
[1724114015745,0.17134877,60588.0,60578.0,0.012]
[1724114015955,0.17134877,60588.0,60587.0,0.115536]
[1724114016165,0.17134877,60588.0,60579.0,1.50330097]
[1724114016166,0.17134877,60588.0,60582.0,0.231091]
[1724114016370,0.17134877,60588.0,60580.0,0.02013954]
[1724114016371,0.17134877,60588.0,60580.0,0.13568854]
[1724114016583,0.17234877,60588.0,60585.0,0.115538]
[1724114016790,0.17234877,60588.0,60580.0,0.02013954]
[1724114016791,0.001,60588.0,60587.0,0.115536]
[1724114017004,0.1805,60600.0,60587.0,0.115536]
[1724114017005,0.3864,60599.0,60587.0,0.1]
[1724114017222,0.17134877,60598.0,60588.0,0.1]
[1724114017426,0.17134877,60598.0,60592.0,0.001]
[1724114017627,0.17134877,60598.0,60588.0,0.1]
[1724114017628,0.17134877,60598.0,60588.0,0.096]
[1724114017838,0.1815,60600.0,60580.0,0.25123654]
[1724114017839,0.17134877,60591.0,60580.0,0.02013954]
[1724114018065,0.17134877,60591.0,60587.0,0.014]
[1724114018267,0.17134877,60588.0,60587.0,0.00926633]
[1724114018481,0.17134877,60588.0,60582.0,0.014]
[1724114018691,0.17134877,60587.0,60569.0,6.0009086]
[1724114018914,0.3864,60582.0,60571.0,1.5]
[1724114019130,0.17134877,60581.0,60571.0,1.5]
[1724114020497,0.17134877,60581.0,60572.0,0.231129]
[1724114020742,0.7131,60621.0,60572.0,0.231129]
[1724114020743,0.3886,60596.0,60573.0,0.35964877]
[1724114020963,0.001,60581.0,60575.0,0.04705655]
[1724114021173,0.17134877,60595.0,60576.0,0.04705655]
[1724114021389,0.17134877,60595.0,60574.0,0.17058483]
[1724114021390,0.17134877,60594.0,60574.0,0.1]
[1724114022266,0.17134877,60594.0,60580.0,0.115548]
[1724114022471,0.17134877,60594.0,60581.0,0.1]
[1724114022675,0.17134877,60594.0,60584.0,0.115541]
[1724114022894,0.17134877,60594.0,60585.0,0.1]
[1724114023112,0.17134877,60594.0,60586.0,1.5]
[1724114023322,0.17134877,60594.0,60586.0,1.731075]
[1724114023548,0.17134877,60594.0,60586.0,1.615537]
[1724114023744,0.17234877,60594.0,60586.0,1.5]
[1724114024179,0.17234877,60594.0,60589.0,0.115531]
[1724114024402,0.17234877,60594.0,60587.0,0.1]
[1724114024403,0.17234877,60594.0,60590.0,0.1]
[1724114024844,0.17334877,60594.0,60590.0,0.1]
[1724114025063,0.002,60594.0,60590.0,0.1]
[1724114025279,0.4031,60612.0,60601.0,0.231018]
[1724114025480,0.4031,60612.0,60593.0,0.62467855]
[1724114025481,0.000826,60594.0,60593.0,0.62467855]
[1724114025692,0.000826,60594.0,60593.0,0.85571464]
[1724114025924,0.17134877,60611.0,60593.0,0.14704462]
[1724114026154,0.17134877,60611.0,60604.0,0.231004]
[1724114026371,0.17134877,60611.0,60605.0,0.1]
[1724114026582,0.00823,60649.0,60605.0,0.1]
[1724114026787,0.17134877,60628.0,60606.0,0.00329987]
[1724114027016,0.17134877,60628.0,60621.0,0.11547]
[1724114027232,0.17134877,60628.0,60616.0,0.25107042]
[1724114027442,0.17134877,60628.0,60623.0,0.115467]
[1724114027655,0.17134877,60628.0,60621.0,0.11547]
[1724114027855,0.17134877,60628.0,60617.0,0.1]
[1724114027856,0.17134877,60628.0,60622.0,0.1]
[1724114028066,0.3873,60627.0,60607.0,0.53415656]
[1724114028292,0.17134877,60626.0,60623.0,0.115466]
[1724114028499,0.17134877,60626.0,60622.0,0.115468]
[1724114028702,0.17134877,60626.0,60621.0,0.230941]
[1724114028703,0.17134877,60626.0,60621.0,0.115471]
[1724114028903,0.17134877,60626.0,60618.0,0.115476]
[1724114029108,0.17134877,60626.0,60619.0,0.1]
[1724114029319,0.17134877,60626.0,60625.0,0.115463]
[1724114029519,0.17134877,60626.0,60623.0,0.115466]
[1724114029694,0.17134877,60626.0,60624.0,0.215465]
[1724114029894,0.17134877,60626.0,60624.0,0.1]
[1724114030680,0.17134877,60626.0,60625.0,0.014]
[1724114031026,0.17134877,60626.0,60611.0,0.1]
[1724114031237,0.17134877,60615.0,60606.0,0.04704462]
[1724114031463,0.17134877,60615.0,60601.0,0.59111499]
[1724114031464,0.4052,60608.0,60592.0,0.02011024]
[1724114031619,0.4052,60608.0,60589.0,0.07058483]
[1724114031620,0.4052,60608.0,60589.0,0.7]
[1724114031991,0.4052,60608.0,60588.0,0.02011024]
[1724114031992,0.1885,60607.0,60588.0,0.02011024]
[1724114032195,0.4052,60597.0,60579.0,0.04704462]
[1724114032315,0.4052,60597.0,60578.0,0.0009086]
[1724114032316,0.17134877,60590.0,60578.0,0.0009086]
[1724114032538,0.4052,60581.0,60578.0,0.0009086]
[1724114032740,0.17134877,60580.0,60578.0,0.0009086]
[1724114033154,0.17134877,60579.0,60578.0,0.0009086]
[1724114033789,0.17134877,60579.0,60578.0,0.1162997]
[1724114033965,0.7101,60613.0,60578.0,0.1162997]
[1724114033966,0.3887,60594.0,60580.0,0.115549]
[1724114034170,0.17134877,60593.0,60581.0,1.5]
[1724114034373,0.17134877,60593.0,60582.0,0.02015066]
[1724114034647,0.17134877,60593.0,60582.0,0.02014696]
[1724114034791,0.17134877,60593.0,60583.0,0.231087]
[1724114034990,0.17134877,60593.0,60586.0,0.115537]
[1724114035228,0.17134877,60592.0,60582.0,0.02014696]
[1724114035544,0.3887,60594.0,60581.0,1.514]
[1724114035545,0.17134877,60591.0,60581.0,1.514]
[1724114035743,0.17134877,60591.0,60582.0,0.114]
[1724114036158,0.17134877,60591.0,60583.0,0.014]
[1724114036375,0.3887,60594.0,60583.0,0.014]
[1724114036376,0.17134877,60589.0,60583.0,0.014]
[1724114036574,0.17134877,60584.0,60583.0,0.014]
[1724114036991,0.17134877,60584.0,60583.0,1.514]
[1724114037394,0.74914877,60584.0,60583.0,0.014]
[1724114037816,0.74914877,60584.0,60578.0,0.0007467]
[1724114038051,0.5778,60584.0,60582.0,0.014]
[1724114038249,0.3888,60583.0,60582.0,0.028]
[1724114038463,0.3888,60583.0,60582.0,0.014]
[1724114038659,0.3888,60583.0,60578.0,0.0007467]
[1724114039574,0.3888,60583.0,60582.0,0.006]
[1724114039757,0.3888,60583.0,60582.0,0.003]
[1724114040442,0.56014877,60583.0,60582.0,0.003]
[1724114041065,0.397,60582.0,60569.0,6.0009086]
[1724114041308,0.17134877,60570.0,60569.0,6.0009086]
[1724114041499,0.34269754,60570.0,60569.0,6.0009086]
[1724114042281,0.1847,60584.0,60570.0,0.231136]
[1724114042481,0.7101,60610.0,60570.0,0.06529302]
[1724114042482,0.17134877,60583.0,60570.0,0.06529302]
[1724114042634,0.17134877,60583.0,60578.0,0.115552]
[1724114042983,0.17134877,60583.0,60572.0,0.02017694]
[1724114043185,0.17134877,60583.0,60576.0,0.23111]
[1724114043435,0.17134877,60583.0,60579.0,1.5]
[1724114043614,0.17134877,60583.0,60580.0,0.12017694]
[1724114043824,0.17134877,60583.0,60582.0,0.115545]
[1724114044106,0.17134877,60583.0,60580.0,0.12017694]
[1724114044941,0.17134877,60583.0,60582.0,0.231091]
[1724114045177,0.4079,60592.0,60583.0,0.115543]
[1724114045350,0.17134877,60591.0,60584.0,0.1]
[1724114045723,0.17134877,60591.0,60590.0,0.11553]
[1724114045894,0.17134877,60591.0,60590.0,0.446591]
[1724114046092,0.17134877,60591.0,60590.0,0.1]
[1724114046546,0.17134877,60591.0,60590.0,0.331061]
[1724114046746,0.17134877,60591.0,60590.0,0.446591]
[1724114046923,0.17134877,60591.0,60590.0,0.1]
[1724114047124,0.001,60630.0,60590.0,0.1]
[1724114047125,0.4028,60625.0,60591.0,0.3793]
[1724114047324,0.17134877,60624.0,60593.0,0.33384524]
[1724114047597,0.4028,60625.0,60593.0,0.33384524]
[1724114047598,0.17134877,60622.0,60610.0,1.5]
[1724114047735,0.17134877,60622.0,60611.0,0.1201593]
[1724114047936,0.17134877,60622.0,60613.0,0.115486]
[1724114048140,0.17134877,60622.0,60614.0,0.1]
[1724114048385,0.17134877,60622.0,60614.0,0.215484]
[1724114048626,0.17134877,60622.0,60614.0,0.1]
[1724114048823,0.17134877,60622.0,60616.0,0.115479]
[1724114049007,0.17134877,60622.0,60615.0,0.230964]
[1724114049264,0.17134877,60622.0,60616.0,0.1]
[1724114049593,0.17134877,60621.0,60614.0,0.014]
[1724114049803,0.4028,60625.0,60617.0,0.115479]
[1724114049804,0.17134877,60618.0,60617.0,0.115479]
[1724114049980,0.17134877,60618.0,60611.0,0.53420562]
[1724114049981,0.17134877,60618.0,60616.0,0.11548]
[1724114050212,0.17134877,60618.0,60613.0,0.129485]
[1724114050399,0.17134877,60618.0,60614.0,0.215484]
[1724114050608,0.17134877,60618.0,60614.0,0.1]
[1724114050808,0.17134877,60618.0,60617.0,0.115479]
[1724114051029,0.00826,60631.0,60617.0,0.115479]
[1724114051030,0.00826,60631.0,60622.0,0.230938]
[1724114051234,0.00826,60631.0,60617.0,0.1]
[1724114051235,0.17134877,60630.0,60617.0,0.1]
[1724114051432,0.17134877,60630.0,60626.0,0.115461]
[1724114051635,0.17134877,60630.0,60623.0,0.230932]
[1724114051842,0.17134877,60630.0,60624.0,0.115464]
[1724114052085,0.17134877,60630.0,60617.0,0.1]
[1724114052286,0.17134877,60630.0,60618.0,0.215477]
[1724114052287,0.000826,60622.0,60618.0,0.215477]
[1724114052495,0.16639277,60621.0,60618.0,0.1]
[1724114052745,0.16639277,60621.0,60605.0,0.1155]
[1724114052949,0.16639277,60621.0,60617.0,0.014]
[1724114053084,0.3862,60620.0,60617.0,0.014]
[1724114053283,0.17134877,60619.0,60617.0,0.014]
[1724114053870,0.3862,60620.0,60617.0,0.014]
[1724114053871,0.17134877,60618.0,60617.0,0.014]
[1724114054118,0.17134877,60618.0,60599.0,0.09408561]
[1724114054119,0.17134877,60618.0,60598.0,0.0470428]
[1724114054315,0.17134877,60618.0,60599.0,1.731024]
[1724114054643,0.17134877,60618.0,60600.0,0.05647505]
[1724114054859,0.17134877,60618.0,60617.0,0.014]
[1724114055040,0.17134877,60618.0,60600.0,0.02014114]
[1724114055041,0.36244877,60618.0,60600.0,0.02014114]
[1724114055330,0.391,60617.0,60600.0,0.02014114]
[1724114055528,0.391,60617.0,60586.0,0.51404632]
[1724114055761,0.391,60617.0,60599.0,0.028]
[1724114055762,0.1927,60616.0,60599.0,0.028]
[1724114055965,0.17134877,60600.0,60599.0,0.01253255]
[1724114056113,0.76424877,60600.0,60599.0,0.01253255]
[1724114056539,0.76424877,60600.0,60578.0,0.04728258]
[1724114056724,0.76424877,60600.0,60586.0,0.51404632]
[1724114056725,0.17134877,60587.0,60586.0,0.51404632]
[1724114057071,0.17134877,60587.0,60575.0,0.115558]
[1724114057072,0.17068265,60587.0,60575.0,0.04728258]
[1724114057263,0.5929,60600.0,60576.0,0.115556]
[1724114057264,0.17118778,60586.0,60576.0,0.115556]
[1724114057455,0.17118778,60586.0,60580.0,0.115549]
[1724114057629,0.17118778,60586.0,60574.0,0.231119]
[1724114057630,0.17118778,60586.0,60574.0,0.27840158]
[1724114057828,0.17118778,60586.0,60574.0,0.04728258]
[1724114058033,0.17118778,60586.0,60573.0,0.04728258]
[1724114058655,0.3868,60585.0,60573.0,0.04728258]
[1724114058828,0.17134877,60584.0,60574.0,0.009]
[1724114059285,0.002,60586.0,60585.0,0.34662]
[1724114059433,0.000826,60622.0,60586.0,0.3829]
[1724114059434,0.3857,60620.0,60586.0,0.3829]
[1724114059658,0.17134877,60619.0,60600.0,0.04729549]
[1724114059827,0.17134877,60619.0,60597.0,0.07094323]
[1724114059828,0.17134877,60619.0,60606.0,0.04727991]
[1724114060023,0.17134877,60619.0,60606.0,0.10287862]
[1724114060226,0.17134877,60619.0,60607.0,0.15559871]
[1724114060451,0.17134877,60619.0,60607.0,0.05559871]
[1724114061091,0.17134877,60619.0,60605.0,0.1]
[1724114061283,0.17134877,60619.0,60603.0,0.04727991]
[1724114061489,0.17234877,60619.0,60607.0,0.5855]
[1724114061689,0.17234877,60619.0,60608.0,0.17850277]
[1724114062042,0.4026,60618.0,60609.0,1.5]
[1724114062326,0.4026,60618.0,60610.0,0.02015065]
[1724114062327,0.17134877,60617.0,60610.0,0.02015065]
[1724114062780,0.17134877,60617.0,60607.0,0.014]
[1724114062781,0.17134877,60616.0,60607.0,0.014]
[1724114062954,0.1862,60615.0,60598.0,1.6]
[1724114063158,0.17134877,60614.0,60599.0,0.02015065]
[1724114063369,0.17134877,60614.0,60608.0,0.014]
[1724114063715,0.17134877,60614.0,60609.0,1.5]
[1724114063917,0.17134877,60614.0,60610.0,0.02015065]
[1724114064167,0.17134877,60614.0,60608.0,0.014]
[1724114064369,0.17134877,60614.0,60607.0,0.014]
[1724114064551,0.17134877,60614.0,60605.0,0.1]
[1724114064766,0.17134877,60614.0,60607.0,0.014]
[1724114064963,0.17134877,60614.0,60602.0,1.55649611]
[1724114064964,0.17234877,60614.0,60609.0,0.009]
[1724114065544,0.17134877,60614.0,60596.0,1.5]
[1724114065751,0.17134877,60614.0,60597.0,0.02015913]
[1724114065947,0.1981,60606.0,60597.0,0.02015913]
[1724114066160,0.17134877,60605.0,60590.0,0.51404632]
[1724114066405,0.17134877,60603.0,60590.0,0.7]
[1724114066545,0.17134877,60603.0,60590.0,0.02015913]
[1724114066749,0.1981,60606.0,60589.0,0.56036292]
[1724114066750,0.17134877,60591.0,60589.0,0.56036292]
[1724114066952,0.1981,60589.0,60573.0,0.04727991]
[1724114067148,0.1981,60589.0,60574.0,1.5]
[1724114067149,0.17134877,60588.0,60574.0,1.5]
[1724114067349,0.17134877,60588.0,60575.0,0.02015913]
[1724114067747,0.17134877,60588.0,60575.0,0.07851125]
[1724114067957,0.3997,60596.0,60581.0,0.231094]
[1724114068162,0.3997,60596.0,60582.0,0.05810962]
[1724114068163,0.17134877,60595.0,60582.0,0.05810962]
[1724114068367,0.17134877,60595.0,60583.0,1.5]
[1724114068572,0.17134877,60595.0,60584.0,0.02015913]
[1724114069000,0.17134877,60595.0,60579.0,0.05461162]
[1724114069204,0.17134877,60595.0,60582.0,0.115544]
[1724114069405,0.17134877,60595.0,60585.0,0.231078]
[1724114069607,0.17134877,60595.0,60583.0,0.15461162]
[1724114069608,0.17134877,60595.0,60586.0,0.215537]
[1724114069978,0.197,60604.0,60589.0,0.231064]
[1724114070155,0.000826,60619.0,60589.0,0.231064]
[1724114070156,0.196,60613.0,60590.0,0.1]
[1724114070361,0.17134877,60612.0,60593.0,0.04735321]
[1724114070619,0.17134877,60612.0,60594.0,0.05461162]
[1724114071197,0.17134877,60612.0,60596.0,0.231036]
[1724114071400,0.17134877,60612.0,60597.0,0.12015913]
[1724114071602,0.17134877,60612.0,60598.0,0.02015913]
[1724114071851,0.3917,60616.0,60608.0,0.22880884]
[1724114071997,0.000826,60619.0,60610.0,0.5913]
[1724114072198,0.3901,60636.0,60611.0,0.12015793]
[1724114072396,0.17134877,60630.0,60612.0,1.52015793]
[1724114072606,0.17134877,60630.0,60613.0,0.12014838]
[1724114072786,0.17134877,60630.0,60617.0,0.115478]
[1724114072986,0.17134877,60630.0,60618.0,0.12014838]
[1724114073183,0.17134877,60630.0,60619.0,0.02014838]
[1724114073384,0.17134877,60630.0,60620.0,0.02014838]
[1724114073677,0.17134877,60630.0,60619.0,0.02014838]
[1724114073857,0.17134877,60630.0,60620.0,0.02014838]
[1724114074066,0.3901,60636.0,60615.0,0.230965]
[1724114074067,0.3901,60636.0,60621.0,0.02014838]
[1724114074290,0.3901,60636.0,60619.0,0.230949]
[1724114074291,0.17960877,60631.0,60622.0,0.02014838]
[1724114074497,0.17960877,60631.0,60623.0,0.02014838]
[1724114074498,0.17134877,60630.0,60623.0,0.02014838]
[1724114074701,0.17134877,60630.0,60620.0,0.1]
[1724114074903,0.17134877,60630.0,60621.0,0.11547]
[1724114075121,0.00826,60631.0,60615.0,0.02014838]
[1724114075122,0.3772,60621.0,60615.0,0.02014838]
[1724114075314,0.3772,60621.0,60613.0,0.14803238]
[1724114075315,0.3772,60621.0,60613.0,0.01071904]
[1724114075556,0.3772,60621.0,60594.0,0.05681672]
[1724114075780,0.3772,60621.0,60594.0,0.231045]
[1724114075987,0.3772,60621.0,60598.0,0.115514]
[1724114076191,0.1934,60625.0,60591.0,0.51404632]
[1724114076192,0.3819,60610.0,60591.0,0.51404632]
[1724114076394,0.17134877,60609.0,60592.0,0.7]
[1724114076747,0.17134877,60609.0,60592.0,0.815525]
[1724114076961,0.17134877,60609.0,60592.0,0.7]
[1724114077571,0.17134877,60609.0,60593.0,0.1]
[1724114077769,0.17134877,60609.0,60595.0,0.7]
[1724114078060,0.17134877,60609.0,60596.0,0.215518]
[1724114078781,0.17134877,60607.0,60598.0,0.7]
[1724114078985,0.17134877,60603.0,60598.0,0.7]
[1724114079184,0.17134877,60602.0,60595.0,0.014]
[1724114079366,0.17134877,60597.0,60596.0,0.014]
[1724114080598,0.17134877,60597.0,60586.0,0.74512132]
[1724114080822,0.17134877,60597.0,60580.0,0.12672406]
[1724114080823,0.17134877,60597.0,60583.0,0.04732624]
[1724114080970,0.17134877,60597.0,60590.0,0.11553]
[1724114081364,0.17134877,60597.0,60584.0,0.7]
[1724114081568,0.3299,60596.0,60584.0,0.7]
[1724114081774,0.17134877,60592.0,60585.0,0.1]
[1724114081950,0.17134877,60592.0,60587.0,0.7]
[1724114082990,0.17134877,60592.0,60585.0,0.1]
[1724114083189,0.17134877,60592.0,60583.0,0.115543]
[1724114083398,0.3819,60601.0,60584.0,0.1]
[1724114083602,0.17134877,60600.0,60593.0,0.115524]
[1724114083801,0.17134877,60600.0,60584.0,0.1]
[1724114083802,0.001,60597.0,60596.0,0.115519]
[1724114084015,0.003,60633.0,60596.0,0.115519]
[1724114084016,0.3815,60611.0,60602.0,0.115506]
[1724114084305,0.17134877,60610.0,60601.0,0.231017]
[1724114084512,0.17134877,60610.0,60601.0,0.04732624]
[1724114084718,0.1917,60617.0,60603.0,1.5]
[1724114084919,0.1917,60617.0,60609.0,0.115493]
[1724114084920,0.17134877,60616.0,60609.0,0.115493]
[1724114085340,0.17134877,60616.0,60608.0,0.115495]
[1724114085485,0.17134877,60616.0,60604.0,0.0560874]
[1724114085486,0.001,60610.0,60604.0,0.0560874]
[1724114085787,0.17134877,60616.0,60609.0,0.7]
[1724114086125,0.17134877,60616.0,60613.0,0.115486]
[1724114086352,0.17134877,60616.0,60612.0,0.230976]
[1724114086513,0.3889,60625.0,60614.0,0.7]
[1724114086718,0.3299,60629.0,60620.0,0.346419]
[1724114086957,0.3889,60633.0,60620.0,0.446419]
[1724114087157,0.3889,60633.0,60620.0,0.49376777]
[1724114087367,0.3889,60633.0,60620.0,0.51391133]
[1724114087567,0.3889,60633.0,60620.0,0.84734877]
[1724114087813,0.3889,60633.0,60620.0,0.915473]
[1724114088008,0.3889,60633.0,60620.0,0.98296533]
[1724114088214,0.3889,60633.0,60620.0,0.915473]
[1724114088472,0.3889,60633.0,60620.0,1.59697743]
[1724114088671,0.3889,60633.0,60620.0,0.83397658]
[1724114088672,0.17134877,60621.0,60620.0,0.83397658]
[1724114088959,0.17134877,60621.0,60620.0,0.714]
[1724114089140,0.17134877,60621.0,60620.0,0.728]
[1724114089342,0.17134877,60621.0,60620.0,0.714]
[1724114089743,0.17134877,60621.0,60620.0,0.7]
[1724114090167,0.17134877,60621.0,60620.0,0.714]
[1724114090628,0.17134877,60621.0,60620.0,0.7]
[1724114090821,0.17134877,60621.0,60620.0,0.714]
[1724114091030,0.75094877,60621.0,60620.0,0.69979016]
[1724114091240,0.75094877,60621.0,60601.0,0.02015534]
[1724114091448,0.75094877,60621.0,60604.0,0.51404632]
[1724114091449,0.3299,60613.0,60604.0,0.51404632]
[1724114091660,0.3299,60613.0,60600.0,0.7]
[1724114091661,0.17134877,60612.0,60600.0,0.7]
[1724114091875,0.17134877,60612.0,60599.0,0.02015534]
[1724114092078,0.17134877,60612.0,60597.0,0.02015534]
[1724114092278,0.17134877,60612.0,60599.0,0.0009075]
[1724114092482,0.17134877,60612.0,60599.0,0.02106284]
[1724114092686,0.17134877,60612.0,60599.0,0.0009075]
[1724114093359,0.17134877,60612.0,60604.0,0.014]
[1724114093999,0.17134877,60612.0,60601.0,0.02015534]
[1724114094195,0.17234877,60612.0,60600.0,0.02015534]
[1724114094613,0.17334877,60612.0,60599.0,0.0139075]
[1724114094818,0.17134877,60612.0,60599.0,0.0009075]
[1724114095029,0.17134877,60612.0,60604.0,0.014]
[1724114095030,0.17234877,60612.0,60604.0,0.014]
[1724114095255,0.17334877,60612.0,60604.0,0.014]
[1724114095903,0.17434877,60612.0,60604.0,0.014]